Cogmind - Beta 16 @@@ ROGUE MODE // 2025.11.18 @ 02:39:34 Player: shapeshifter Result: Destroyed self with Sigix Terminator Performance ------------- Evolutions (8) 4000 Regions Visited (28) 5600 Robots Destroyed (258) 1290 Value Destroyed (13648) 13648 Prototype IDs (229) 4580 Alien Tech Used (5) 1000 Bonus (23755) 23755 TOTAL SCORE: 53873 Bonus ------- High Alert Combat Kills 841 Follower Combat Kills 1234 Entered Garrisons 200 Met Data Miner 300 Used Data Conduit 3000 Met Imprinter 300 Acquired ECA 300 Met Warlord at Base 500 MAIN.C Attacked Warlord 500 Warlord Defense Kills 694 Found Hidden Lab 3000 Decrypted A0 Command 3000 Met Warlord at Research 2000 Invited to Help at Command 2000 Hacked God Mode 5000 Scanned by Researcher 500 Pursued by Intercept 1000 Friendly Fire -614 Cogmind --------- Core Integrity 0/1450 Matter 237/300 Energy 579/600 System Corruption 88% Temperature Cool (0) Movement Walking (105) Location -2/Testing Parts ------- > --- POWER (3) -------- (None) > --- PROPULSION (6) --- Centrium Leg Centrium Leg > --- UTILITY (11) ----- Experimental Heat Sink High-capacity Storage Unit Advanced Energy Well Advanced Signal Interpreter Experimental Cloaking Device System Mapper > --- WEAPON (3) ------- (None) > --- INVENTORY (20) --- Micro Antimatter Reactor Advanced Heat Sink Advanced Cooling System Tactical Coordination Suite Experimental ECM Suite Advanced Point Defense System Subatomic Replicator Potential Cannon Gamma Bomb Array Guided Remote Datajack Peak State ------------ > --- POWER ------------ Particle Reactor Particle Reactor Light Quantum Reactor > --- PROPULSION ------- Centrium Leg Centrium Leg Centrium Leg Centrium Leg Centrium Leg Centrium Leg > --- UTILITY ---------- Advanced Heat Sink High-capacity Storage Unit Advanced Energy Well Advanced Signal Interpreter Experimental Cloaking Device SHELL Armor System Mapper Deep Network Scanner Quantum Router > --- WEAPON ----------- Vortex Cannon Nova Cannon Nova Cannon > --- INVENTORY -------- Reinforced Antimatter Reactor Light Quantum Reactor Biometal Leg Centrium Leg Centrium Leg Advanced Sensor Array Tactical Coordination Suite Advanced Launcher Guidance Computer Experimental ECM Suite Advanced Point Defense System Transdimensional Reconstructor Subatomic Replicator Tachyon Dispersion Ray Vortex Cannon Potential Cannon Gamma Bomb Array Sigix Terminator Guided Remote Datajack [Rating: 209] Favorites ----------- Power Antimatter Reactor Engine Heavy Ion Engine Power Core Nuclear Core Reactor Antimatter Reactor Propulsion Enhanced Flexi-carbon Leg Treads Light Treads Leg Enhanced Flexi-carbon Leg Wheel Wheel Hover Unit Gravmag Array Utility High-capacity Storage Unit Device Advanced Cooling System Storage High-capacity Storage Unit Processor Enhanced Optical Array Hackware Quantum Router Protection Hardened Medium Armor Plating Artifact Phase Redirector Weapon Heavy Plasma Cannon Energy Gun Tachyon Dispersion Ray Energy Cannon Heavy Plasma Cannon Ballistic Gun Autogun Launcher Precision Grenade Launcher Special Weapon Remote Datajack Slashing Weapon Falx Special Melee Weapon Improved Datajack Build | -11 -10 -10 -9 -8 -8 -8 -7 -7 -7 -7 -6 -6 -6 -6 -6 -5 -5 -5 -5 -5 -4 -4 -4 -4 -3 -3 -2 -2 ------- Run | Yrd Mat Min Mat Mat Gar Mat Fac Low Low Zio Pro Fac Low Low Dat Pro Fac Upp Upp War Pro Fac Arm Lab Res Qua Res Tes Slots Evolved 16 | . . . 2 2 . . 2 . . . . 2 . . . . 2 . . . . 2 . . 2 . 2 . Power 2 | . . . . . . . . . . . . . . . . . 1 . . . . . . . . . 1 . Propulsion 4 | . . . . 1 . . 1 . . . . 1 . . . . 1 . . . . . . . . . . . Utility 9 | . . . 2 . . . 1 . . . . 1 . . . . . . . . . 2 . . 2 . 1 . Weapon 1 | . . . . 1 . . . . . . . . . . . . . . . . . . . . . . . . Parts Attached 215 | 7 4 4 17 30 9 8 4 4 8 2 6 8 . 3 16 4 4 . 1 8 1 4 22 2 5 6 12 16 Power 27 | 1 . 1 2 5 . 1 . . 1 . . 1 . . 2 . 1 . . 1 . . 4 . 1 1 2 3 Engine 6 | 1 . 1 . 2 . 1 . . . . . 1 . . . . . . . . . . . . . . . . Core 6 | . . . 2 3 . . . . . . . . . . . . 1 . . . . . . . . . . . Reactor 15 | . . . . . . . . . 1 . . . . . 2 . . . . 1 . . 4 . 1 1 2 3 Propulsion 60 | 2 . 2 6 12 2 5 1 . 2 1 2 1 . . 4 . . . 1 3 . 1 7 . . 1 2 5 Treads 24 | 2 . . 5 12 2 3 . . . . . . . . . . . . . . . . . . . . . . Leg 27 | . . . . . . . . . 2 . 1 . . . 4 . . . 1 3 . 1 7 . . 1 2 5 Wheel 8 | . . 2 1 . . 2 1 . . 1 1 . . . . . . . . . . . . . . . . . Hover 1 | . . . . . . . . . . . . 1 . . . . . . . . . . . . . . . . Flight . | . . . . . . . . . . . . . . . . . . . . . . . . . . . . . Utility 70 | 2 1 . 3 8 1 1 1 3 3 . 2 5 . 1 7 3 3 . . 1 1 3 5 1 3 2 4 6 Device 27 | 1 . . 1 5 . . . 1 1 . 1 2 . . . 2 . . . . . 2 3 . 1 1 2 4 Storage 6 | 1 1 . . 1 . . . . . . . . . . 2 . 1 . . . . . . . . . . . Processor 8 | . . . 1 . . . . . 1 . . 2 . . 3 . . . . . . . . . . . 1 . Hackware 5 | . . . . 1 . . . . . . . . . . . . 2 . . . . . 1 . 1 . . . Protection 23 | . . . 1 1 1 1 1 2 1 . 1 1 . 1 2 1 . . . 1 1 1 1 1 1 . 1 2 Artifact 1 | . . . . . . . . . . . . . . . . . . . . . . . . . . 1 . . Weapon 58 | 2 3 1 6 5 6 1 2 1 2 1 2 1 . 2 3 1 . . . 3 . . 6 1 1 2 4 2 Energy Gun 5 | . . . 1 1 . . . . . . . . . . . . . . . 1 . . . 1 . . . 1 Energy Cannon 20 | . . . . . 2 . . . . 1 1 1 . 2 1 1 . . . 1 . . 5 . 1 1 3 . Ballistic Gun 18 | 2 3 1 5 4 1 . 2 . . . . . . . . . . . . . . . . . . . . . Ballistic Cannon . | . . . . . . . . . . . . . . . . . . . . . . . . . . . . . Launcher 5 | . . . . . . 1 . 1 . . 1 . . . . . . . . . . . . . . 1 . 1 Special Weapon 5 | . . . . . 2 . . . . . . . . . . . . . . 1 . . 1 . . . 1 . Impact Weapon . | . . . . . . . . . . . . . . . . . . . . . . . . . . . . . Slashing Weapon 4 | . . . . . . . . . 2 . . . . . 2 . . . . . . . . . . . . . Piercing Weapon . | . . . . . . . . . . . . . . . . . . . . . . . . . . . . . Special Melee Weapon 1 | . . . . . 1 . . . . . . . . . . . . . . . . . . . . . . . Unidentified Prototypes 20 | . . . 1 2 . . . . . . 3 . . . . . . . . 2 . . . 4 . 1 2 5 Corrupted Parts 2 | . . . . . . . . . . . . . . . . . . . . . . . . . . . . 2 System Corruption 14 | . . . . . . . . . . . . . . . . . . . . . . . . . . . . 14 Parts Lost 88 | . 1 5 6 2 1 4 . 6 1 . 1 2 . 2 8 . . 1 . . 1 1 7 . 4 7 7 21 Power 14 | . . 1 . . . . . 1 . . . 1 . 1 . . . . . . . . 1 . 1 2 1 5 Propulsion 22 | . . 2 1 . . 3 . 2 . . 1 . . 1 1 . . 1 . . . 1 . . . 1 1 7 Utility 30 | . . 1 2 1 . 1 . 2 . . . 1 . . 4 . . . . . 1 . 3 . 2 2 4 6 Weapon 22 | . 1 1 3 1 1 . . 1 1 . . . . . 3 . . . . . . . 3 . 1 2 1 3 Highest Loss Streak 9 | . 1 5 3 1 1 2 . 6 1 . 1 1 . 1 5 . . 1 . . 1 1 5 . 2 4 6 9 To Critical Strikes 2 | . . . . . . . . . . . . . . . . . . . . . . . . . . . 1 1 Average Backups 16 | 4 5 8 10 17 19 18 19 18 17 16 15 14 15 15 8 17 16 15 16 18 19 17 18 17 18 17 17 14 Power 1 | 1 1 . 1 1 1 . . . . . . . . . . 1 1 1 1 2 2 2 3 2 1 . 1 1 Propulsion 1 | 1 2 1 . 1 3 1 . . . . . . . . . 1 . 1 2 2 4 4 4 5 5 4 2 2 Utility 6 | . . . . 4 6 7 10 9 9 9 8 6 7 7 4 11 10 9 7 8 6 4 4 4 4 4 3 4 Weapon 5 | . 2 6 6 6 6 6 7 5 5 5 3 4 5 4 2 2 3 4 4 4 6 6 5 4 5 5 5 3 Tool/Special . | . . . . . . . . . . . . . . . . . . . . . . . . . . . . . Unused Backups 59 | . 3 . 4 10 3 . . 1 2 4 4 2 . . 1 1 1 . 2 7 1 . 5 1 . 1 1 5 Power 5 | . . . 1 . . . . . . . . . . . . . . . . 1 . . 1 1 . . . 1 Propulsion 6 | . . . 1 . . . . . . . . . . . . . . . . 3 . . 2 . . . . . Utility 20 | . . . . 1 . . . . 2 1 4 2 . . . 1 1 . 2 2 . . . . . . 1 3 Weapon 22 | . 3 . 2 5 3 . . 1 . 3 . . . . . . . . . 1 1 . 2 . . 1 . . Tool/Special 6 | . . . . 4 . . . . . . . . . . 1 . . . . . . . . . . . . 1 Average Slot Usage (%) 88 | . 99 85 69 97 90 77 73 55 85 94 94 88 86 80 73 100 98 98 98 96 93 88 88 97 93 92 91 80 Engine 1 | . 14 12 6 3 . 9 7 . . . . 1 6 1 . . . . . . . . . . . . . . Core 1 | . . . 4 5 8 . . . . . . . . . . . 4 5 5 2 . . . . . . . . Reactor 3 | . . . . . . . . . 6 7 7 4 . . 1 6 5 5 5 5 5 5 7 10 8 9 12 9 Treads 6 | . 27 14 7 27 27 24 . . . . . . . . . . . . . . . . . . . . . . Leg 15 | . . . . . . . . . 12 15 20 20 20 13 15 33 34 33 33 35 35 30 30 31 28 26 25 22 Wheel 2 | . . 7 14 . . 1 20 8 7 14 5 . . . . . . . . . . . . . . . . . Device 9 | . 14 7 . 12 9 9 7 . 5 7 7 10 13 13 4 13 6 5 5 5 5 11 15 14 14 20 16 8 Storage 7 | . 14 14 11 9 9 9 7 7 7 7 7 6 6 6 5 6 5 5 5 5 5 5 5 5 4 6 8 8 Processor 7 | . . . . 9 9 9 7 7 7 7 7 12 13 13 24 15 11 5 5 3 . . . . . . 2 4 Hackware 3 | . . . . . . . . . . . . . . . . . 7 11 11 11 11 10 9 10 13 14 13 12 Protection 6 | . . . 4 2 9 7 5 13 15 15 15 8 . 4 2 3 1 5 5 7 10 8 3 7 8 1 2 2 Energy Cannon 9 | . . . . . 4 9 7 . . 4 19 20 20 14 4 20 17 16 17 16 17 15 14 15 13 9 8 9 Ballistic Gun 6 | . 28 28 21 26 14 . 9 15 13 4 . . . . . . . . . . . . . . . . . . Peak Build Rating 209 | 7 8 8 15 31 32 32 40 40 63 66 75 90 82 82 96 98 118 115 112 132 133 147 166 165 180 186 201 209 Average Rating 79 | 4 7 6 10 26 27 26 35 26 57 62 71 82 82 74 66 95 113 112 110 121 132 145 151 159 173 174 188 180 On Entrance 82 | . 7 8 6 15 31 27 26 40 26 59 66 75 82 82 74 96 95 115 107 112 131 133 138 147 165 171 172 195 Avg Prop Armor Cover (%) 5 | . . . . . . . . . 7 7 7 3 5 4 12 . 5 3 4 5 1 . 2 3 3 4 3 5 Naked Turns . | . . . . . . . . . . . . . . . . . . . . . . . . . . . . . Heaviest Build 164 | 13 30 30 32 62 62 60 73 73 81 91 97 97 77 85 88 95 108 108 108 125 126 139 129 119 120 134 139 164 Greatest Support 180 | 40 40 40 40 60 60 60 42 42 50 26 78 78 78 78 140 140 112 109 109 167 133 161 168 168 138 138 180 180 Greatest Overweight (x) 9 | . . . 1 1 1 2 2 6 8 7 9 1 . 1 4 . . . . . . . . . . 1 1 1 Average Overweight (x) . | . . . . . . . 1 5 7 2 1 . . . . . . . . . . . . . . . . . Largest Inventory Capacity 20 | 8 15 15 15 20 20 20 20 20 20 20 20 20 20 20 20 20 20 20 20 20 20 20 20 20 20 20 20 20 Average Capacity 19 | 7 9 15 15 18 20 20 20 20 20 20 20 20 20 20 11 20 20 20 20 20 20 20 20 20 20 20 20 20 Most Carried 20 | 6 15 10 15 20 20 20 20 20 20 20 20 20 20 20 20 20 20 19 20 20 20 20 20 20 20 20 20 20 Average Carried 18 | 4 5 8 10 17 19 18 19 19 19 19 19 19 20 20 9 19 19 18 19 19 19 17 18 18 19 18 19 17 Final Capacity 20 | 8 15 15 15 20 20 20 20 20 20 20 20 20 20 20 20 20 20 20 20 20 20 20 20 20 20 20 20 20 Final Carried 20 | 4 10 6 14 20 19 18 20 20 20 20 20 20 20 20 20 20 19 18 20 20 20 18 20 20 20 20 19 19 Class Distribution -------------------- 19% | Scavenger-Tank 18% | Scavenger-Skirmisher 12% | Mutant 10% | Scavenger-Mutant 6% | Hacker-Skirmisher 6% | Hacker-Tank 5% | Wizard-Mutant 5% | Hacker-Gunner 3% | Scavenger-Gunner Dominant Class ---------------- Mutant | -10/Materials Mutant | -10/Mines Mutant | -9/Materials Scavenger-Tank | -8/Materials Scavenger-Tank | -8/Garrison Mutant | -8/Materials Scavenger-Tank | -7/Factory Mutant | -7/Lower Caves Scavenger-Tank | -7/Lower Caves Scavenger-Mutant | -7/Zion Scavenger-Tank | -6/Proximity Caves Scavenger-Skirmisher | -6/Factory Scavenger-Skirmisher | -6/Lower Caves Scavenger-Skirmisher | -6/Lower Caves Gladiator | -6/Data Miner Scavenger-Skirmisher | -5/Proximity Caves Scavenger-Skirmisher | -5/Factory Scavenger-Skirmisher | -5/Upper Caves Hacker-Skirmisher | -5/Upper Caves Hacker-Skirmisher | -5/Warlord Hacker-Gunner | -4/Proximity Caves Hacker-Gunner | -4/Factory Hacker-Tank | -4/Armory Hacker-Tank | -4/Lab Wizard-Tank | -3/Research Wizard-Mutant | -3/Quarantine Wizard-Mutant | -2/Research Wizard-Skirmisher | -2/Testing Resources | -11 -10 -10 -9 -8 -8 -8 -7 -7 -7 -7 -6 -6 -6 -6 -6 -5 -5 -5 -5 -5 -4 -4 -4 -4 -3 -3 -2 -2 ----------- Run | Yrd Mat Min Mat Mat Gar Mat Fac Low Low Zio Pro Fac Low Low Dat Pro Fac Upp Upp War Pro Fac Arm Lab Res Qua Res Tes Matter Collected 6332 | 296 94 150 512 1759 546 161 10 388 213 . 180 85 . 88 288 60 . 48 90 . 148 131 318 . 121 264 210 172 Remotely . | . . . . . . . . . . . . . . . . . . . . . . . . . . . . . Salvage Created 11918 | 164 373 83 699 2251 205 1048 79 431 84 . 171 338 . 239 428 520 . 79 . 268 124 595 1615 . 316 513 650 645 Parts 535 | 7 26 5 51 122 10 42 3 7 7 . 7 13 . 13 15 17 . 6 . 15 11 17 66 . 18 17 15 25 Haulers Intercepted 8 | . 1 . 2 5 . . . . . . . . . . . . . . . . . . . . . . . . Recyclers Shooed 2 | . . . . . . 1 . . . . . . . . . . . . . . . . . . 1 . . . Parts Field Recycled . | . . . . . . . . . . . . . . . . . . . . . . . . . . . . . Retrieved Matter . | . . . . . . . . . . . . . . . . . . . . . . . . . . . . . Parts Self-Destructed 90 | . . . . . . . . 8 7 . 31 . . 12 . 15 . 6 . . 11 . . . . . . . Prevented 3 | . . . . . . . . . . . 3 . . . . . . . . . . . . . . . . . Parts Restored . | . . . . . . . . . . . . . . . . . . . . . . . . . . . . . Kills | -11 -10 -10 -9 -8 -8 -8 -7 -7 -7 -7 -6 -6 -6 -6 -6 -5 -5 -5 -5 -5 -4 -4 -4 -4 -3 -3 -2 -2 ------- Run | Yrd Mat Min Mat Mat Gar Mat Fac Low Low Zio Pro Fac Low Low Dat Pro Fac Upp Upp War Pro Fac Arm Lab Res Qua Res Tes Combat Hostiles Destroyed 206 | . 9 2 13 34 4 18 . 7 . . 3 8 . 7 4 9 . 5 . 6 3 8 26 . 4 7 11 18 Melee 6 | . . . . 1 . . . . . . . 1 . . 4 . . . . . . . . . . . . . Guns 63 | . 9 2 13 33 4 . . 2 . . . . . . . . . . . . . . . . . . . . Cannons 89 | . . . . . . 16 . . . . 2 7 . 2 . 8 . 1 . 6 2 6 21 . 3 5 6 4 AOE 32 | . . . . . . 1 . 5 . . . . . 3 . . . 4 . . . . . . . 1 4 14 Classes Destroyed 23 | 2 3 . 3 5 1 1 . 1 . . . . . . . 1 . . . . 1 . 2 . . . 2 1 Worker 6 | . . . . 1 . . . . . . . . . . . . . . . . . . . . . . . 5 Builder 6 | . . . . 4 . . . . . . . . . . . . . . . . . . . . . . . 2 Tunneler 4 | 3 . . . 1 . . . . . . . . . . . . . . . . . . . . . . . . Hauler 8 | . 1 . 2 5 . . . . . . . . . . . . . . . . . . . . . . . . Recycler 7 | 1 . . 1 2 . 1 1 . . . . . . . . . . . . . . . . . . . . 1 Operator 2 | . . . . 2 . . . . . . . . . . . . . . . . . . . . . . . . Drone 2 | . . . . . . . . . . . . . . . . . . . . . 2 . . . . . . . Watcher 12 | . . . 2 5 . 3 . . . . . . . . . . . . . . . . 1 . . 1 . . Swarmer 36 | . 3 . 4 7 . 4 . . . . . 3 . 6 . 1 . 5 . 2 . . . . . . 1 . Saboteur 3 | . . . . . . . . . . . . . . . . . . . . . . . 3 . . . . . Grunt 59 | . 6 2 5 15 2 10 . 4 . . 1 1 . . . 4 . . . . . 4 2 . . . 3 . Brawler 3 | . . . . 2 . . . 1 . . . . . . . . . . . . . . . . . . . . Duelist 6 | . . . 1 . . . . 1 . . 1 . . . . . . . . . . . 3 . . . . . Researcher 2 | . . . . . . . . . . . . . . . . . . . . . . . . . . . . 2 Sentry 27 | . . . 3 8 1 3 . 1 . . 1 3 . . . 1 . . . . . 2 2 . . . . 2 Demolisher 1 | . . . . . . . . . . . . . . . . . . . . . . . 1 . . . . . Specialist 6 | . . . . . . 1 . . . . . . . . . . . . . . . . 5 . . . . . Hunter 25 | . . . . 2 . 1 . . . . . . . 1 . 2 . . . 2 . 2 2 . . 5 4 4 Programmer 24 | . . . . . 1 . . . . . . 1 . . . . . . . 2 . . 7 . 3 2 . 8 Behemoth 4 | . . . . . . . . . . . . . . . . 1 . . . . 1 . 1 . 1 . . . Enhanced Grunt 4 | . . . . . . . . . . . . . . . 4 . . . . . . . . . . . . . Tracker 3 | . . . . . . . . . . . . . . . . . . . . . . . . . . . 1 2 Combat Programmer 2 | . . . . . . . . . . . . . . . . . . . . . . . . . . . . 2 Striker 2 | . . . . . . . . . . . . . . . . . . . . . . . . . . . 2 . Decomposer 1 | . . . . . . . . 1 . . . . . . . . . . . . . . . . . . . . Packrat 2 | . . . . . . . . 2 . . . . . . . . . . . . . . . . . . . . Samaritan 2 | . . . . . . . . 2 . . . . . . . . . . . . . . . . . . . . Surgeon 1 | . . . . . . . . . . . . . . . . . . . . . . . . . . . 1 . Guerrilla 1 | . . . . . . 1 . . . . . . . . . . . . . . . . . . . . . . Commander 1 | . . . . . . . . . 1 . . . . . . . . . . . . . . . . . . . Best Kill Streak 15 | 2 4 1 4 9 2 3 1 7 . . 1 4 . 3 2 3 . 5 . 6 1 4 5 . 3 3 7 15 Combat Bots Only 11 | . 4 1 4 4 2 3 . 7 . . 1 4 . 3 2 3 . 5 . 6 1 4 5 . 3 3 7 11 Max Kills in Single Turn 15 | 1 1 1 2 2 1 1 1 2 1 . 1 1 . 3 1 1 . 4 . 1 1 1 1 . 1 2 2 15 Gunslinging 1 | . . . . 1 . . . . . . . . . . . . . . . . . . . . . . . . Exploded 11 | . . . . . . 1 . 2 . . . . . 3 . . . 4 . . . . . . . 1 1 11 Melee 1 | . . . . 1 . . . . . . . 1 . . 1 . . . . . . . . . . . . . Uniques/NPCs Destroyed 2 | . . . . . . . . . . . . . . . 1 . . . . . . . . . . . 1 . Data Miner (-6/Data Miner) God Mode (-2/Research) Combat | -11 -10 -10 -9 -8 -8 -8 -7 -7 -7 -7 -6 -6 -6 -6 -6 -5 -5 -5 -5 -5 -4 -4 -4 -4 -3 -3 -2 -2 -------- Run | Yrd Mat Min Mat Mat Gar Mat Fac Low Low Zio Pro Fac Low Low Dat Pro Fac Upp Upp War Pro Fac Arm Lab Res Qua Res Tes Hostile Shots Fired 2081 | . 68 31 97 142 25 88 . 33 53 . 55 187 . 24 42 37 . 14 . 28 9 76 345 . 91 127 100 409 Missed 621 | . 21 4 18 30 8 29 . 12 16 . 19 65 . 8 8 10 . 4 . 7 3 31 105 . 36 45 36 106 Hits 1460 | . 47 27 79 112 17 59 . 21 37 . 36 122 . 16 34 27 . 10 . 21 6 45 240 . 55 82 64 303 Melee 39 | . . . 7 2 . 1 . 7 . . 3 . . . . . . . . . . . 19 . . . . . Projectile 1421 | . 47 27 72 110 17 58 . 14 37 . 33 122 . 16 34 27 . 10 . 21 6 45 221 . 55 82 64 303 AOE 4 | . . . . . . . . . . . . 1 . . . . . . . . . 1 2 . . . . . Critical Strikes 63 | . . 1 3 4 1 6 . 2 . . 2 1 . . . 1 . . . 1 1 1 10 . 2 2 1 24 Actively Blocked 2 | . . . . . . 2 . . . . . . . . . . . . . . . . . . . . . . Part Disruptions 7 | . . . . . . . . . . . . 1 . . . . . . . 1 . . . . 1 1 1 2 Damage Taken 27576 | . 542 401 1082 1504 366 1201 109 580 422 . 580 1023 . 240 1476 622 . 186 . 382 214 908 3995 . 1266 1739 1537 7201 Core 4158 | . 39 121 216 119 95 72 14 37 50 . 66 144 . 32 514 97 . . . 18 . 35 643 . 129 140 243 1334 Absorbed by Shields 480 | . . . . . . . . . . . . . . . . . . . . . . . 480 . . . . . Redirected to Shielding 414 | . . . . . . 103 . . . . . . . . . . . . . . . . 69 . 242 . . . Ignored by Resistances 20 | . . . . . . . . . . . . . . . 14 . . . . . . . . . . . 6 . Regen/Repaired (Parts) 2422 | . . . . . . . . . . 630 . . . . . . . . . 193 . . 609 . 88 115 578 209 Core Remaining (%) 61 | 100 . 36 46 . . 48 . . . . 76 . . . . 7 . . . . 98 . . 66 . 79 . . Volleys Fired 889 | 13 46 17 54 120 47 79 3 41 14 2 18 31 . 22 2 17 6 4 2 8 10 21 116 21 37 59 28 51 Largest 3 | 2 2 2 2 3 3 1 1 2 2 1 3 3 . 3 1 3 1 1 3 3 3 3 3 1 3 3 2 3 Hottest 346 | 40 40 40 46 71 85 85 85 56 56 5 245 270 . 270 5 270 90 90 270 270 270 270 331 113 331 346 233 276 Shots Fired 1719 | 26 91 34 107 357 81 81 3 70 27 2 34 68 . 26 2 51 6 4 6 24 29 59 249 21 63 84 45 69 Gun 753 | 26 91 34 107 357 53 . . 58 27 . . . . . . . . . . . . . . . . . . . Cannon 910 | . . . . . 18 80 3 . . . 32 68 . 24 . 51 6 3 6 24 29 59 239 21 63 80 43 61 Launcher 22 | . . . . . . 1 . 6 . . . . . 2 . . . 1 . . . . . . . 4 . 8 Special 34 | . . . . . 10 . . 6 . 2 2 . . . 2 . . . . . . . 10 . . . 2 . Kinetic 753 | 26 91 34 107 357 53 . . 58 27 . . . . . . . . . . . . . . . . . . . Thermal 875 | . . . . . 18 80 3 . . . 32 68 . 24 . 51 6 3 6 24 29 59 239 21 63 73 41 35 Explosive 10 | . . . . . . 1 . 6 . . . . . 2 . . . 1 . . . . . . . . . . Electromagnetic 11 | . . . . . . . . . . . . . . . . . . . . . . . . . . 4 . 7 Entropic 36 | . . . . . . . . . . . . . . . . . . . . . . . . . . 7 2 27 Robot Hit Streak 33 | 4 12 9 9 16 33 12 1 12 6 1 6 10 . 5 1 14 . 6 . 5 5 21 23 . 16 11 10 5 Robot Miss Streak 9 | 4 3 2 5 3 2 2 4 2 3 . 2 2 . 2 1 4 . 1 . 4 9 1 3 . 3 2 7 7 Penetration Max 1 | . . . . . . . . 1 . . . . . . . . . . . . . . . . . . . . Secondary Targets 13 | . 2 . 4 6 1 . . . . . . . . . . . . . . . . . . . . . . . Max Gunslinging Chain 1 | . 1 . 1 1 1 . . . . . . . . . . . . . . . . . . . . . . . Shots Hit Robots 1026 | 13 68 21 71 220 59 56 1 49 20 1 21 35 . 15 27 32 . 2 . 11 9 35 144 . 27 36 24 29 Core Hits 410 | 8 24 5 31 91 9 22 1 34 3 . 6 12 . 7 13 14 . 5 . 5 3 16 40 . 5 14 11 31 Critical Kills 15 | . . . . 2 . 1 . 2 . . 1 . . 1 . 1 . . . . 1 1 2 . 1 1 1 . Critical Parts Destroyed 2 | . . . . 1 . . . 1 . . . . . . . . . . . . . . . . . . . . Critical Strikes 25 | . . . . 3 . 1 . 3 1 . 1 . . 1 3 1 . . . . 1 1 2 . 1 2 1 3 Meltdown 11 | . . . . . . 1 . . . . 1 . . 1 . 1 . . . . 1 1 2 . 1 1 1 . Destroy 6 | . . . . 3 . . . 3 . . . . . . . . . . . . . . . . . . . . Sever 4 | . . . . . . . . . 1 . . . . . 3 . . . . . . . . . . . . . Sunder 4 | . . . . . . . . . . . . . . . . . . . . . . . . . . 1 . 3 Melee Attacks 67 | . . . . . 7 . . . 4 1 . . . . 55 . . . . . . . . . . . . . Impact . | . . . . . . . . . . . . . . . . . . . . . . . . . . . . . Slashing 60 | . . . . . . . . . 4 1 . . . . 55 . . . . . . . . . . . . . Piercing . | . . . . . . . . . . . . . . . . . . . . . . . . . . . . . Sneak Attacks 12 | . . . . . 7 . . . 4 . . . . . 1 . . . . . . . . . . . . . Combat Hostiles . | . . . . . . . . . . . . . . . . . . . . . . . . . . . . . Follow-up Attacks 2 | . . . . . . . . . . . . . . . 2 . . . . . . . . . . . . . Damage Inflicted 48731 | 104 553 280 950 3607 753 1938 29 1832 525 . 691 1303 . 694 1222 1365 . 363 . 558 391 1390 5354 . 1380 2031 2676 18742 Guns 7202 | 104 553 280 950 3604 513 . . 905 293 . . . . . . . . . . . . . . . . . . . Cannons 20468 | . . . . . 240 1758 29 . . . 691 1246 . 450 . 1323 . 71 . 558 391 1365 5354 . 1380 1748 1743 2121 Explosions 19471 | . . . . . . 180 . 927 . . . 43 . 244 . 42 . 292 . . . . . . . 248 933 16562 Melee 1454 | . . . . . . . . . 232 . . . . . 1222 . . . . . . . . . . . . . Ramming 136 | . . . . 3 . . . . . . . 14 . . . . . . . . . 25 . . . 35 . 59 Kinetic 7202 | 104 553 280 950 3604 513 . . 905 293 . . . . . . . . . . . . . . . . . . . Thermal 36574 | . . . . . 240 1816 29 . . . 691 1246 . 450 . 1365 . 71 . 558 391 1365 5354 . 1380 1676 2676 17266 Explosive 1609 | . . . . . . 103 . 927 . . . 43 . 244 . . . 292 . . . . . . . . . . Electromagnetic 333 | . . . . . . . . . . . . . . . . . . . . . . . . . . 172 . 161 Impact 19 | . . . . . . 19 . . . . . . . . . . . . . . . . . . . . . . Slashing 1454 | . . . . . . . . . 232 . . . . . 1222 . . . . . . . . . . . . . Piercing . | . . . . . . . . . . . . . . . . . . . . . . . . . . . . . Entropic 1404 | . . . . . . . . . . . . . . . . . . . . . . . . . . 148 . 1256 Highest Corruption 88 | . . . . 5 6 6 . . . . . 2 2 2 2 2 . . . 2 2 . 7 7 2 10 48 88 Average Corruption 7 | . . . . 4 5 6 . . . . . 1 2 2 2 2 . . . 1 2 . 5 7 1 4 48 56 Corruption Purged . | . . . . . . . . . . . . . . . . . . . . . . . . . . . . . Corruption Blocked . | . . . . . . . . . . . . . . . . . . . . . . . . . . . . . Effects 283 | . . . . 31 45 29 . . . . . 3 3 21 12 7 . . . . 6 . 29 16 . 13 16 52 Message Errors 62 | . . . . 5 11 5 . . . . . 1 1 5 2 2 . . . . 1 . 7 1 . 4 5 12 Matter Fused 66 | . . . . 12 10 7 . . . . . 1 1 4 4 . . . . . 2 . 6 6 . 2 3 8 Heat Flow Errors 24 | . . . . 1 2 4 . . . . . . . 3 3 . . . . . . . 3 . . . 2 6 Energy Discharges 43 | . . . . 3 12 3 . . . . . . 1 4 . 2 . . . . . . 5 3 . 3 2 5 Parts Rejected 4 | . . . . . . 2 . . . . . . . . 1 . . . . . 1 . . . . . . . Parts Fused 3 | . . . . . 1 . . . . . . . . . . . . . . . . . . 1 . . . 1 Data Loss (minor) 28 | . . . . 4 5 2 . . . . . . . 1 2 2 . . . . 2 . 5 2 . 1 2 . Data Loss (major) 8 | . . . . . 2 2 . . . . . . . 1 . 1 . . . . . . . 1 . 1 . . Misfires 10 | . . . . 1 . 3 . . . . . . . . . . . . . . . . . 1 . 1 1 3 Alerts 5 | . . . . 1 1 . . . . . . . . 2 . . . . . . . . . . . . . 1 Misdirections 9 | . . . . . . . . . . . . . . . . . . . . . . . . . . . . 9 Weapon Failures 21 | . . . . 4 1 1 . . . . . 1 . 1 . . . . . . . . 3 1 . 1 1 7 Overload Shots 5 | . . . . . . . . . . . . . . . . . . . . . . . 5 . . . . . Overflow Damage 2836 | . . . . . 3 59 . 3 . . . 89 . 17 59 42 . . . 32 17 . 150 . 47 92 171 2055 Projectiles 1009 | . . . . . 3 59 . . . . . 89 . 14 . 42 . . . 32 17 . 150 . 47 81 140 335 Explosions 1757 | . . . . . . . . 3 . . . . . 3 . . . . . . . . . . . . 31 1720 Melee 70 | . . . . . . . . . . . . . . . 59 . . . . . . . . . . 11 . . Knockbacks 1 | . . . . . . . . . . . . . . . . . . . . . . . . . . . . 1 Impact 1 | . . . . . . . . . . . . . . . . . . . . . . . . . . . . 1 Kinetic . | . . . . . . . . . . . . . . . . . . . . . . . . . . . . . Secondary . | . . . . . . . . . . . . . . . . . . . . . . . . . . . . . Self-Inflicted Damage 1395 | . . . . . 73 110 . . . . . . . . . . . 35 . . . . . . . 72 34 1071 Shots 26 | . . . . . 1 1 . . . . . . . . . . . 1 . . . . . . . 7 1 15 Rammed . | . . . . . . . . . . . . . . . . . . . . . . . . . . . . . Targets Rammed 11 | . . . . 1 . . . . . . . 1 . . . . . . . . . 1 . . . 1 . 7 Kicked 10 | . . . . . . . . . . . . 1 . . . . . . . . . 1 . . . 1 . 7 Crushed 1 | . . . . 1 . . . . . . . . . . . . . . . . . . . . . . . . Highest Temperature 637 | . 18 20 20 387 127 221 . 13 . . 293 366 . 189 228 392 12 96 414 200 200 575 502 . 129 139 300 637 Average Temperature 102 | . 9 5 4 52 17 43 . 12 . . 64 100 . 54 107 134 5 39 198 142 119 168 127 . 60 74 76 172 Received Heat Transfer 3936 | . 228 243 363 612 72 351 . 99 183 . 141 126 . . . 123 . . . . 398 144 616 . 129 . 27 81 Effects 20 | . . . . 1 . . . . . . . . . . . . . . 1 . . 2 1 . . . . 15 Shutdowns 7 | . . . . 1 . . . . . . . . . . . . . . 1 . . 1 . . . . . 4 Energy Bleed 2 | . . . . . . . . . . . . . . . . . . . . . . . . . . . . 2 Matter Decay 1 | . . . . . . . . . . . . . . . . . . . . . . 1 . . . . . . Short Circuit 2 | . . . . . . . . . . . . . . . . . . . . . . . . . . . . 2 Damage (minor) 2 | . . . . . . . . . . . . . . . . . . . . . . . . . . . . 2 Damage (major) 5 | . . . . . . . . . . . . . . . . . . . . . . . . . . . . 5 Damage (core) 1 | . . . . . . . . . . . . . . . . . . . . . . . 1 . . . . . Siege Activations . | . . . . . . . . . . . . . . . . . . . . . . . . . . . . . Martial Activations . | . . . . . . . . . . . . . . . . . . . . . . . . . . . . . Shielding Activations . | . . . . . . . . . . . . . . . . . . . . . . . . . . . . . Robots Disrupted 1 | . . . . . . . . . . . . . . . . 1 . . . . . . . . . . . . Combat Hostiles 1 | . . . . . . . . . . . . . . . . 1 . . . . . . . . . . . . Robots Corrupted 1 | . . . . . . . . . . . . . . . . . . . . . . . . . . 1 . . Combat Hostiles . | . . . . . . . . . . . . . . . . . . . . . . . . . . . . . Parts Fried 3 | . . . . . . . . . . . . . . . . . . . . . . . . . . 3 . . Impact Corruptions 2 | . . . . . . . . . . . . . . . . . . . . . . . . . . 1 . 1 Robots Melted 16 | . . . . . . 1 . . . . 1 . . 2 . 1 . . . . 1 2 5 . 1 1 1 . Combat Hostiles 16 | . . . . . . 1 . . . . 1 . . 2 . 1 . . . . 1 2 5 . 1 1 1 . Parts Melted 50 | . . . . . . 7 . . . . 3 4 . 1 . 4 . . . 4 . 6 13 . . 5 1 2 Heat Transferred 20750 | . . . . . 296 2159 37 . . . 920 1296 . 700 . 1350 . 100 . 600 450 1750 5506 . 1110 1234 1818 1424 Parts Sabotaged 2 | . . . . . . . . . . . . . . . . . . . . . . . 2 . . . . . Parts Stolen . | . . . . . . . . . . . . . . . . . . . . . . . . . . . . . Parts Stripped . | . . . . . . . . . . . . . . . . . . . . . . . . . . . . . Power Chain Reactions 2 | . . . . . . . . . . . . . . . . 1 . . . . . . . . . 1 . . Alert | -11 -10 -10 -9 -8 -8 -8 -7 -7 -7 -7 -6 -6 -6 -6 -6 -5 -5 -5 -5 -5 -4 -4 -4 -4 -3 -3 -2 -2 ------- Run | Yrd Mat Min Mat Mat Gar Mat Fac Low Low Zio Pro Fac Low Low Dat Pro Fac Upp Upp War Pro Fac Arm Lab Res Qua Res Tes Maximum Alert Level 3 | . . . . 2 3 3 1 . . . . . . . . . . . . . . 2 2 . . . 1 . Low Security (%) 48 | 100 100 100 100 38 . . . . . . . 100 . . . . 100 . . . . . . . 100 100 86 100 Level 1 19 | . . . . 56 7 . 100 . . . . . . . . . . . . . . . 30 . . . 13 . Level 2 23 | . . . . 4 58 61 . . . . . . . . . . . . . . . 100 69 . . . . . Level 3 8 | . . . . . 33 38 . . . . . . . . . . . . . . . . . . . . . . Level 4 . | . . . . . . . . . . . . . . . . . . . . . . . . . . . . . Level 5 . | . . . . . . . . . . . . . . . . . . . . . . . . . . . . . High Security . | . . . . . . . . . . . . . . . . . . . . . . . . . . . . . Max Security . | . . . . . . . . . . . . . . . . . . . . . . . . . . . . . Peak Influence 973 | 5 147 30 152 433 973 848 374 . . . . 114 . . . . 24 . . . . 616 684 . 122 116 226 155 Initial 600 | . . 26 . 30 284 473 374 . . . . . . . . . . . . . . 600 280 . . 63 . 120 Average 293 | 1 71 7 89 230 638 659 297 . . . . 48 . . . . 2 . . . . 575 484 . 39 73 89 115 Influence Increases 9229 | 20 241 50 389 1075 719 883 20 155 126 . 472 395 . 175 20 225 36 110 . 150 40 834 960 . 262 338 633 901 Destroy 0b10 Robot/C 4720 | . 180 40 260 680 240 480 . 140 100 . 280 200 . 140 20 180 . 100 . 120 20 160 540 . 80 140 220 400 Destroy 0b10 Robot/NC 255 | 20 5 . 25 100 . 35 5 . . . . . . 5 . . . . . . 10 . 5 . . 5 . 40 Destroy Leader 926 | . 42 10 68 180 . 122 . . 10 . 30 60 . 30 . 30 . 10 . . 10 40 112 . 30 22 50 70 Allied During Kill 282 | . . . . . 25 52 . . 16 . 147 32 . . . . . . . . . . 10 . . . . . Trap Triggered on 0b10 20 | . . . . . . . . . . . . . . . . . . . . . . . . . 20 . . . Successful Hack 148 | . 14 . 36 18 . . . . . . . . . . . . 24 . . . . 12 16 . 16 12 . . Disable Machine 600 | . . . . 75 30 105 15 . . . . 60 . . . . . . . . . . 120 . 15 60 15 105 Anti-Garrison Action 450 | . . . . . 300 . . . . . . . . . . . . . . . . . . . . . 150 . Destroy Structure 943 | . . . . 7 109 74 . . . . . 43 . . . . 12 . . . . 22 142 . 56 84 108 286 Advance Influence 600 | . . . . . . . . . . . . . . . . . . . . . . 600 . . . . . . Lose Combat Pursuer 285 | . . . . 15 15 15 . 15 . . 15 . . . . 15 . . . 30 . . 15 . 45 15 90 . Influence Decreases 8704 | 20 172 119 316 711 183 1032 630 369 126 . 472 288 107 175 20 225 36 68 42 30 160 260 884 650 150 449 420 590 Entered New Map 2527 | . . 43 . 43 153 500 450 80 . . . . 41 . . . . . 9 . 120 . 294 650 . 49 1 94 Time Decay 5077 | 20 162 66 266 648 . 452 180 229 126 . 422 248 66 165 20 205 36 68 33 30 40 150 440 . 120 230 369 286 Search Patrol Dispatched 100 | . . . . . . . . . . . . . . . . . . . . . . 100 . . . . . . Lost Part 680 | . 10 10 50 20 10 40 . 60 . . 10 20 . 10 . . . . . . . 10 70 . 30 70 50 210 Lost Ally 220 | . . . . . 20 40 . . . . 40 20 . . . 20 . . . . . . 80 . . . . . Purge Threat 100 | . . . . . . . . . . . . . . . . . . . . . . . . . . 100 . . Squads Dispatched 39 | . 1 . . 4 . 3 1 . . . . 5 . . . . . . . . . . 5 . 4 2 4 10 Investigation 5 | . . . . 2 . 1 . . . . . . . . . . . . . . . . . . 1 . 1 . Extermination 8 | . . . . . . . . . . . . 2 . . . . . . . . . . 3 . . 1 . 2 Reinforcement 20 | . 1 . . 2 . 1 1 . . . . . . . . . . . . . . . 2 . 3 1 2 7 Assault 1 | . . . . . . 1 . . . . . . . . . . . . . . . . . . . . . . Garrison 3 | . . . . . . . . . . . . 3 . . . . . . . . . . . . . . . . Intercept 2 | . . . . . . . . . . . . . . . . . . . . . . . . . . . 1 1 Searches Triggered 1 | . . . . . . . . . . . . . . . . . . . . . . 1 . . . . . . Construction Impeded 2 | . . . . . . . . . . . . . . . . . . . . . . . . . 1 . . 1 Haulers Reinforced 1 | . . . . . . . . . . . . . . . . . . . . . . . . . . . 1 . Active Scanning Responses . | . . . . . . . . . . . . . . . . . . . . . . . . . . . . . Cargo Convoy Interrupts . | . . . . . . . . . . . . . . . . . . . . . . . . . . . . . Stealth | -11 -10 -10 -9 -8 -8 -8 -7 -7 -7 -7 -6 -6 -6 -6 -6 -5 -5 -5 -5 -5 -4 -4 -4 -4 -3 -3 -2 -2 --------- Run | Yrd Mat Min Mat Mat Gar Mat Fac Low Low Zio Pro Fac Low Low Dat Pro Fac Upp Upp War Pro Fac Arm Lab Res Qua Res Tes Distress Signals 22 | . . . 1 2 . 1 . . . . . . . . . . . . . 1 1 . 6 . 1 1 7 1 Communications Jammed . | . . . . . . . . . . . . . . . . . . . . . . . . . . . . . Distress Signals . | . . . . . . . . . . . . . . . . . . . . . . . . . . . . . Times Spotted 344 | . 11 2 16 48 10 35 1 9 5 . 14 11 . 7 5 9 1 5 . 16 5 13 39 . 15 13 26 28 Peak Tracking Total 14 | . 3 2 5 4 3 5 1 9 4 . 8 4 . 3 2 3 1 5 . 9 2 6 10 . 9 4 9 14 Tactical Retreats 13 | . . . . 1 1 1 . 1 . . 1 . . . . 1 . . . 1 . . 1 . 1 1 3 . Traps | -11 -10 -10 -9 -8 -8 -8 -7 -7 -7 -7 -6 -6 -6 -6 -6 -5 -5 -5 -5 -5 -4 -4 -4 -4 -3 -3 -2 -2 ------- Run | Yrd Mat Min Mat Mat Gar Mat Fac Low Low Zio Pro Fac Low Low Dat Pro Fac Upp Upp War Pro Fac Arm Lab Res Qua Res Tes Traps Triggered 12 | . 1 . . 6 1 2 1 . . . . . . . . . 1 . . . . . . . . . . . Indirectly . | . . . . . . . . . . . . . . . . . . . . . . . . . . . . . Trap Hack Attempts . | . . . . . . . . . . . . . . . . . . . . . . . . . . . . . Triggered . | . . . . . . . . . . . . . . . . . . . . . . . . . . . . . Disarmed . | . . . . . . . . . . . . . . . . . . . . . . . . . . . . . Reprogrammed 8 | . . . . . . . . . . . . . . . . . . . . . . . . . 8 . . . Reused 2 | . . . . . . . . . . . . . . . . . . . . . . . . . 2 . . . Traps Extracted . | . . . . . . . . . . . . . . . . . . . . . . . . . . . . . Installed . | . . . . . . . . . . . . . . . . . . . . . . . . . . . . . Triggered 2 | . . . . . . . . . . . . . . . . . . . . . . . . . 2 . . . Machines | -11 -10 -10 -9 -8 -8 -8 -7 -7 -7 -7 -6 -6 -6 -6 -6 -5 -5 -5 -5 -5 -4 -4 -4 -4 -3 -3 -2 -2 ---------- Run | Yrd Mat Min Mat Mat Gar Mat Fac Low Low Zio Pro Fac Low Low Dat Pro Fac Upp Upp War Pro Fac Arm Lab Res Qua Res Tes Machines Disabled 59 | . . . . 5 10 7 1 2 . . 1 4 . . . . . . . 1 . . 8 6 1 4 2 7 Max in Single Turn 2 | . . . . 1 2 2 1 1 . . 1 2 . . . . . . . 1 . . 1 1 1 1 1 2 Garrison Access 2 | . . . . . . . . . . . . . . . . . . . . . . . . . 1 . 1 . Garrison Relay 4 | . . . . . 4 . . . . . . . . . . . . . . . . . . . . . . . Phase Generator 1 | . . . . . 1 . . . . . . . . . . . . . . . . . . . . . . . Machines Repaired . | . . . . . . . . . . . . . . . . . . . . . . . . . . . . . Machines Dismantled 2 | . . . . . 1 . . . . . . . . . . . . . . 1 . . . . . . . . Machines Sabotaged . | . . . . . . . . . . . . . . . . . . . . . . . . . . . . . Overloaded Fab Kills . | . . . . . . . . . . . . . . . . . . . . . . . . . . . . . Hacking | -11 -10 -10 -9 -8 -8 -8 -7 -7 -7 -7 -6 -6 -6 -6 -6 -5 -5 -5 -5 -5 -4 -4 -4 -4 -3 -3 -2 -2 --------- Run | Yrd Mat Min Mat Mat Gar Mat Fac Low Low Zio Pro Fac Low Low Dat Pro Fac Upp Upp War Pro Fac Arm Lab Res Qua Res Tes Machines Accessed 64 | . 4 . 7 6 2 2 1 1 2 . . 3 . 1 3 . 4 . 1 5 . 1 9 1 5 4 . 2 Terminals 34 | . 4 . 5 3 2 1 . . . . . 1 . . . . 3 . . . . 1 6 . 3 3 . 2 Fabricators 2 | . . . . . . . . . . . . . . . . . . . . . . . 2 . . . . . Repair Stations 2 | . . . 1 . . . . . . . . . . . . . . . . . . . 1 . . . . . Recycling Units 2 | . . . . 1 . . . . . . . 1 . . . . . . . . . . . . . . . . Scanalyzers 7 | . . . 1 1 . 1 1 . . . . . . . . . 1 . . . . . . . 1 1 . . Garrison Access 3 | . . . . 1 . . . . . . . 1 . . . . . . . . . . . . 1 . . . Total Hacks 202 | . 17 . 20 11 2 4 2 1 8 . . 4 . 1 26 . 8 . 1 9 . 6 18 20 30 11 . 3 Successful 131 | . 6 . 12 5 . 1 1 1 8 . . 1 . 1 26 . 3 . 1 9 . 4 9 20 18 4 . 1 Failed 67 | . 11 . 7 5 2 3 . . . . . 3 . . . . 5 . . . . 2 9 . 11 7 . 2 Catastrophic 13 | . 2 . . . 1 . . . . . . 1 . . . . 4 . . . . . 2 . 1 1 . 1 Database Lockouts 4 | . . . 1 1 . . 1 . . . . . . . . . . . . . . . . . 1 . . . Manual 62 | . 17 . 15 2 . 2 . . . 1 . 2 . . . . 3 . . . . . 2 . 15 2 . 1 Terminals 102 | . 17 . 16 4 2 2 . . . . . 1 . . . . 5 . . . . 6 13 . 25 8 . 3 Fabricators 3 | . . . . . . . . . . . . . . . . . . . . . . . 3 . . . . . Repair Stations 3 | . . . 1 . . . . . . . . . . . . . . . . . . . 2 . . . . . Recycling Units 4 | . . . . 3 . . . . . . . 1 . . . . . . . . . . . . . . . . Scanalyzers 20 | . . . 3 3 . 2 2 . . . . . . . . . 3 . . . . . . . 4 3 . . Garrison Access 4 | . . . . 1 . . . . . . . 2 . . . . . . . . . . . . 1 . . . Terminal Hacks 103 | . 3 . 4 2 . . . 1 8 . . . . 1 26 . 1 . 1 9 . 4 6 20 13 3 . 1 Record 42 | . . . 1 . . . . . 7 . . . . . 6 . . . 1 7 . . . 20 . . . . Part Schematic 11 | . . . . . . . . . . . . . . . 9 . . . . . . 2 . . . . . . Robot Schematic 8 | . . . . . . . . . . . . . . . 8 . . . . . . . . . . . . . Prototype ID Bank 4 | . . . . . . . . . . . . . . . 3 . . . . . . . . . 1 . . . Open Door 9 | . . . . . . . . 1 1 . . . . 1 . . . . . 2 . . 3 . . . . 1 Level Access Points 2 | . . . . . . . . . . . . . . . . . . . . . . . . . 1 1 . . Branch Access Points 3 | . . . . 1 . . . . . . . . . . . . 1 . . . . . . . 1 . . . Emergency Access Points 3 | . . . . . . . . . . . . . . . . . . . . . . 1 . . 2 . . . Terminal Index 1 | . 1 . . . . . . . . . . . . . . . . . . . . . . . . . . . Unreport Threat 1 | . . . . . . . . . . . . . . . . . . . . . . . . . . 1 . . Reprogram Traps 3 | . . . . . . . . . . . . . . . . . . . . . . . . . 3 . . . Patrol Status 1 | . . . . . . . . . . . . . . . . . . . . . . . 1 . . . . . Recall Investigation 1 | . . . . . . . . . . . . . . . . . . . . . . . . . 1 . . . Recall Reinforcements 2 | . . . . . . . . . . . . . . . . . . . . . . . 1 . 1 . . . Registered Components 3 | . . . . 1 . . . . . . . . . . . . . . . . . 1 . . 1 . . . Zone Layout 9 | . 2 . 3 . . . . . . . . . . . . . . . . . . . 1 . 2 1 . . Fabricator Hacks 1 | . . . . . . . . . . . . . . . . . . . . . . . 1 . . . . . Build 1 | . . . . . . . . . . . . . . . . . . . . . . . 1 . . . . . Repair Station Hacks 3 | . . . 1 . . . . . . . . . . . . . . . . . . . 2 . . . . . Scan Component 1 | . . . . . . . . . . . . . . . . . . . . . . . 1 . . . . . Repair 1 | . . . . . . . . . . . . . . . . . . . . . . . 1 . . . . . Refit 1 | . . . 1 . . . . . . . . . . . . . . . . . . . . . . . . . Recycling Unit Hacks 1 | . . . . . . . . . . . . 1 . . . . . . . . . . . . . . . . Retrieve Components 1 | . . . . . . . . . . . . 1 . . . . . . . . . . . . . . . . Scanalyzer 12 | . . . 2 2 . 1 1 . . . . . . . . . 2 . . . . . . . 3 1 . . Retrieve Study 12 | . . . 2 2 . 1 1 . . . . . . . . . 2 . . . . . . . 3 1 . . Garrison Access Hacks 2 | . . . . 1 . . . . . . . . . . . . . . . . . . . . 1 . . . Unlock Access 1 | . . . . 1 . . . . . . . . . . . . . . . . . . . . . . . . Seal Access 1 | . . . . . . . . . . . . . . . . . . . . . . . . . 1 . . . Unauthorized Hacks 9 | . 3 . 5 . . . . . . . . . . . . . . . . . . . . . 1 . . . Terminals 9 | . 3 . 5 . . . . . . . . . . . . . . . . . . . . . 1 . . . Skim 9 | . 3 . 5 . . . . . . . . . . . . . . . . . . . . . 1 . . . Fabricators . | . . . . . . . . . . . . . . . . . . . . . . . . . . . . . Repair Stations . | . . . . . . . . . . . . . . . . . . . . . . . . . . . . . Recycling Units . | . . . . . . . . . . . . . . . . . . . . . . . . . . . . . Scanalyzers . | . . . . . . . . . . . . . . . . . . . . . . . . . . . . . Garrison Access . | . . . . . . . . . . . . . . . . . . . . . . . . . . . . . Data Cores Recovered . | . . . . . . . . . . . . . . . . . . . . . . . . . . . . . Used . | . . . . . . . . . . . . . . . . . . . . . . . . . . . . . Hacking Detections 41 | . 4 . 5 5 2 2 . . . . . 3 . . . . 3 . . . . 1 7 . 3 4 . 2 Full Trace Events . | . . . . . . . . . . . . . . . . . . . . . . . . . . . . . Feedback Events . | . . . . . . . . . . . . . . . . . . . . . . . . . . . . . Feedback Blocked . | . . . . . . . . . . . . . . . . . . . . . . . . . . . . . Robot Schematics Acquired 14 | . . . . . . . . . . 3 . . . . 8 . . . . . . . . . . . . 3 Robots Built . | . . . . . . . . . . . . . . . . . . . . . . . . . . . . . Authchips . | . . . . . . . . . . . . . . . . . . . . . . . . . . . . . Time . | . . . . . . . . . . . . . . . . . . . . . . . . . . . . . Total Robot Build Rating . | . . . . . . . . . . . . . . . . . . . . . . . . . . . . . Part Schematics Acquired 38 | . . . . . . . . . . 15 . . . . 9 . . . . . . 2 . . . . . 12 Parts Built 2 | . . . . . . . . . . . . . . . . . . . . . . . 2 . . . . . Authchips . | . . . . . . . . . . . . . . . . . . . . . . . . . . . . . Time 64 | . . . . . . . . . . . . . . . . . . . . . . . 64 . . . . . Total Part Build Rating 16 | . . . . . . . . . . . . . . . . . . . . . . . 16 . . . . . Part Studies Acquired 12 | . . . 2 2 . 1 1 . . . . . . . . . 2 . . . . . . . 3 1 . . Parts Repaired 1 | . . . . . . . . . . . . . . . . . . . . . . . 1 . . . . . Time 56 | . . . . . . . . . . . . . . . . . . . . . . . 56 . . . . . Parts Recycled . | . . . . . . . . . . . . . . . . . . . . . . . . . . . . . Recycled Matter . | . . . . . . . . . . . . . . . . . . . . . . . . . . . . . Retrieved Matter . | . . . . . . . . . . . . . . . . . . . . . . . . . . . . . Retrieved Components 2 | . . . . . . . . . . . . 2 . . . . . . . . . . . . . . . . Parts Scanalyzed . | . . . . . . . . . . . . . . . . . . . . . . . . . . . . . Part Schematics Acquired . | . . . . . . . . . . . . . . . . . . . . . . . . . . . . . Parts Damaged . | . . . . . . . . . . . . . . . . . . . . . . . . . . . . . Bothacking | -11 -10 -10 -9 -8 -8 -8 -7 -7 -7 -7 -6 -6 -6 -6 -6 -5 -5 -5 -5 -5 -4 -4 -4 -4 -3 -3 -2 -2 ------------ Run | Yrd Mat Min Mat Mat Gar Mat Fac Low Low Zio Pro Fac Low Low Dat Pro Fac Upp Upp War Pro Fac Arm Lab Res Qua Res Tes Used RIF Installer . | . . . . . . . . . . . . . . . . . . . . . . . . . . . . . Robots Hacked 5 | . . . . . 2 . . . . 1 . . . . 1 . . . . . . . . . . . 1 . Non-combat 1 | . . . . . 1 . . . . . . . . . . . . . . . . . . . . . . . Combat 4 | . . . . . 1 . . . . 1 . . . . 1 . . . . . . . . . . . 1 . Robot Hacks Applied 5 | . . . . . 2 . . . . 1 . . . . 1 . . . . . . . . . . . 1 . parse_system 4 | . . . . . 1 . . . . 1 . . . . 1 . . . . . . . . . . . 1 . no_distress 1 | . . . . . 1 . . . . . . . . . . . . . . . . . . . . . . . Manual 1 | . . . . . . . . . . . . . . . . . . . . . . . . . . . 1 . Relay Couplers Released 18 | . . . . . 17 . . . . . . . . . . . . . . . . . . . . . 1 . Machine Destruction 15 | . . . . . 14 . . . . . . . . . . . . . . . . . . . . . 1 . Programmers 3 | . . . . . 3 . . . . . . . . . . . . . . . . . . . . . . . Fabnet Peak Effective % . | . . . . . . . . . . . . . . . . . . . . . . . . . . . . . Robots Rewired 21 | . . . . . 6 . . 2 . . 2 . . . . . . . . 5 . . 6 . . . . . Allies Hacked 1 | . . . . . 1 . . . . . . . . . . . . . . . . . . . . . . . Hacks Repelled . | . . . . . . . . . . . . . . . . . . . . . . . . . . . . . Allies | -11 -10 -10 -9 -8 -8 -8 -7 -7 -7 -7 -6 -6 -6 -6 -6 -5 -5 -5 -5 -5 -4 -4 -4 -4 -3 -3 -2 -2 -------- Run | Yrd Mat Min Mat Mat Gar Mat Fac Low Low Zio Pro Fac Low Low Dat Pro Fac Upp Upp War Pro Fac Arm Lab Res Qua Res Tes Total Allies 23 | . . . . . 6 . . 2 . 2 2 . . . . . . . . 5 . . 6 . . . . . Largest Group 5 | . . . . . 5 5 . 2 2 4 4 4 . . . . . . . 5 . . 4 . . . . . Highest-Rated Group 256 | . . . . . 145 145 . 48 48 240 240 156 . . . . . . . 241 . . 256 . . . . . Highest-Rated Ally 96 | . . . . . 39 39 . 32 32 96 96 91 . . . . . . . 64 . . 64 . . . . . Initial Warlord ECA Mod 8 | . . . . . . 8 7 7 7 7 6 6 6 6 6 5 5 5 5 5 4 4 4 4 3 3 2 2 Total Orders 6 | . . . . . . . . . . . . . . . . 3 . . . 3 . . . . . . . . STAY 2 | . . . . . . . . . . . . . . . . . . . . 2 . . . . . . . . FOLLOW 1 | . . . . . . . . . . . . . . . . . . . . 1 . . . . . . . . EXPLORE 3 | . . . . . . . . . . . . . . . . 3 . . . . . . . . . . . . Ally Attacks 168 | . . . . . 33 35 . . 21 . 54 20 . . . . . . . . . . 5 . . . . . Total Damage 4186 | . . . . . 614 1074 . . 360 . 1494 528 . . . . . . . . . . 116 . . . . . Kills 37 | . . . . . 8 10 . . 5 . 11 2 . . . . . . . . . . 1 . . . . . Allies Corrupted . | . . . . . . . . . . . . . . . . . . . . . . . . . . . . . Allies Melted 2 | . . . . . . . . . . . . . . . . . . . . 2 . . . . . . . . Intel | -11 -10 -10 -9 -8 -8 -8 -7 -7 -7 -7 -6 -6 -6 -6 -6 -5 -5 -5 -5 -5 -4 -4 -4 -4 -3 -3 -2 -2 ------- Run | Yrd Mat Min Mat Mat Gar Mat Fac Low Low Zio Pro Fac Low Low Dat Pro Fac Upp Upp War Pro Fac Arm Lab Res Qua Res Tes Active Infowar (turns) 20998 | 18 419 127 1 2370 1608 1137 378 636 902 1370 1340 761 454 2103 818 471 267 401 531 735 . 295 1094 432 332 507 1012 479 Optics 14613 | . . . 1 2370 1608 1137 378 636 902 1370 1340 761 454 2103 818 471 264 . . . . . . . . . . . Sensors 5586 | . . . . . . . . . . . . 300 454 1964 151 471 152 401 531 735 . . . . . . . 427 Seismic 564 | 18 419 127 . . . . . . . . . . . . . . . . . . . . . . . . . . Cloaking 4151 | . . . . . . . . . . . . . . . . . . . . . . 295 1094 432 332 507 1012 479 Jamming 1 | . . . . . . . . . . . 1 . . . . . . . . . . . . . . . . . ECM 20 | . . . . . . . . . . . . . . . . . . . . . . . . . . . 20 . Robot Analysis Total 154 | . . . . . . . . . . . . . . . 154 . . . . . . . . . . . . . Derelict Logs Recovered 11 | . . 1 . . . . . . 2 1 1 . 1 3 . 1 . . 1 . . . . . . . . . Drone Launches 3 | . . . . . . . . . . . . . . . . 3 . . . . . . . . . . . . Drone Recoveries . | . . . . . . . . . . . . . . . . . . . . . . . . . . . . . Exploration | -11 -10 -10 -9 -8 -8 -8 -7 -7 -7 -7 -6 -6 -6 -6 -6 -5 -5 -5 -5 -5 -4 -4 -4 -4 -3 -3 -2 -2 ------------- Run | Yrd Mat Min Mat Mat Gar Mat Fac Low Low Zio Pro Fac Low Low Dat Pro Fac Upp Upp War Pro Fac Arm Lab Res Qua Res Tes Turns Passed 22862 | 160 419 242 633 2370 1608 1137 378 636 905 1370 1340 761 454 2103 818 471 267 401 531 1137 409 302 1094 432 332 507 1012 633 Spaces Moved 12817 | 75 167 141 342 975 820 583 334 314 449 1058 747 330 377 793 452 267 188 330 436 860 330 165 579 216 216 298 595 380 Core 11 | 10 . . . . . . . . . . . . . . 1 . . . . . . . . . . . . . Treads 2742 | 65 167 77 101 975 820 537 . . . . . . . . . . . . . . . . . . . . . . Legs 7114 | . . . . . . . . . 22 . 434 330 377 793 298 267 188 330 436 860 330 165 579 216 216 298 595 380 Wheels 2797 | . . 64 241 . . 46 334 314 427 1058 313 . . . . . . . . . . . . . . . . . Hover 153 | . . . . . . . . . . . . . . . 153 . . . . . . . . . . . . . Flight . | . . . . . . . . . . . . . . . . . . . . . . . . . . . . . Fastest Speed 50 | 50 160 100 85 160 163 115 98 98 160 110 125 120 120 120 60 120 116 116 116 107 107 106 106 114 99 99 105 105 Average Speed 138 | 145 160 132 115 195 168 158 102 154 183 115 163 189 120 189 110 120 116 116 116 114 107 108 112 114 99 114 107 107 Slowest Speed 260 | 160 160 160 160 243 243 200 115 160 260 175 205 190 120 190 250 120 120 116 116 117 107 109 115 115 114 175 175 176 Overloaded Moves . | . . . . . . . . . . . . . . . . . . . . . . . . . . . . . Propulsion Burnouts . | . . . . . . . . . . . . . . . . . . . . . . . . . . . . . Robots Hopped . | . . . . . . . . . . . . . . . . . . . . . . . . . . . . . Potential Cave-ins 6 | . . . . . . . . . . . . . . . . . . . . . . . 3 . . 3 . . Cave-ins Triggered . | . . . . . . . . . . . . . . . . . . . . . . . . . . . . . Teleports 1 | . . . . . . . . . . . . . . . . . . . . . . . . . . . . 1 Exploration Rate (%) 48 | 6 32 35 39 86 96 51 8 46 62 88 86 14 53 85 82 54 9 59 52 91 48 4 33 92 12 45 20 29 Regions Visited 28 Branch Regions 17 Pre-discovered Areas 36 | . . 1 1 . . . . 1 1 3 1 . . 2 25 . . . . 1 . . . . . . . . Known Exits Taken 15 | . . . 1 1 . . . . . . . 1 1 1 1 1 1 1 1 . . 1 . 1 1 1 1 . Unknown Exits Taken 12 | 1 1 1 . . . 1 1 1 1 1 1 . . . . . . . . 1 1 . 1 . . . . . Scrap Searched 26 | . . 1 . . . . . 1 3 3 5 . 1 4 . 4 . . 1 . 3 . . . . . . . Spaces Dug 96 | . . . . . . . . . . . . 6 . . . . 5 8 6 . . 11 18 . 17 17 5 3 Terrain Destroyed 675 | . . . . . 136 47 . 37 . . 4 48 . 18 . 16 6 9 6 11 17 20 75 1 30 45 42 107 Melee . | . . . . . . . . . . . . . . . . . . . . . . . . . . . . . Projectile 299 | . . . . . . 15 . 2 . . 4 21 . 9 . 14 6 1 6 11 17 20 70 1 30 38 15 19 AOE 376 | . . . . . 136 32 . 35 . . . 27 . 9 . 2 . 8 . . . . 5 . . 7 27 88 Terrain Rammed . | . . . . . . . . . . . . . . . . . . . . . . . . . . . . . Walls Destroyed . | . . . . . . . . . . . . . . . . . . . . . . . . . . . . . Machines Disabled . | . . . . . . . . . . . . . . . . . . . . . . . . . . . . . Actions | -11 -10 -10 -9 -8 -8 -8 -7 -7 -7 -7 -6 -6 -6 -6 -6 -5 -5 -5 -5 -5 -4 -4 -4 -4 -3 -3 -2 -2 --------- Run | Yrd Mat Min Mat Mat Gar Mat Fac Low Low Zio Pro Fac Low Low Dat Pro Fac Upp Upp War Pro Fac Arm Lab Res Qua Res Tes Total 16412 | 105 247 161 483 1251 980 718 368 401 494 1201 836 406 378 1366 682 378 228 343 457 988 364 243 836 379 276 384 921 538 Wait 1809 | . 10 . 26 51 63 34 18 34 7 120 41 24 2 545 100 77 18 7 12 53 15 47 40 126 12 6 265 56 Move 12792 | 74 166 140 341 975 819 582 333 313 448 1057 746 330 376 792 451 266 187 329 435 859 329 165 578 215 215 297 594 380 Hop . | . . . . . . . . . . . . . . . . . . . . . . . . . . . . . Pick Up 262 | 11 14 . 22 35 5 7 8 1 4 6 7 6 . 1 31 4 4 . 5 17 3 3 32 8 5 6 8 9 Fast Attach 53 | . . . 2 4 . 2 . 1 6 1 6 2 . 2 9 4 . . . 2 1 . 5 . . 1 4 1 Attach 154 | 7 2 4 11 7 5 7 4 4 2 3 . 3 . . 14 1 3 . 1 4 3 4 18 4 5 7 14 17 Detach 28 | . . . 3 . 5 . . 3 1 1 . . . . . . . . . 1 . . . . 1 2 6 5 Swap 99 | . 3 . 8 21 8 2 . 1 3 2 4 3 . 2 4 1 7 2 . 5 . 1 11 3 . 3 . 5 Drop 217 | . 6 . 16 37 9 5 2 2 5 8 14 7 . 2 25 8 3 1 2 17 3 2 29 2 1 2 2 7 Fire 889 | 13 46 17 54 120 47 79 3 41 14 2 18 31 . 22 2 17 6 4 2 8 10 21 116 21 37 59 28 51 Melee 58 | . . . . . 7 . . . 4 1 . . . . 46 . . . . . . . . . . . . . Ram . | . . . . . . . . . . . . . . . . . . . . . . . . . . . . . Kick 8 | . . . . . . . . . . . . . . . . . . . . . . . . . . 1 . 7 Crush 1 | . . . . 1 . . . . . . . . . . . . . . . . . . . . . . . . Escape Stasis . | . . . . . . . . . . . . . . . . . . . . . . . . . . . . . Rewire 26 | . . . . . 4 . . 1 . . . . . . . . . . . 14 . . 7 . . . . . Trap . | . . . . . . . . . . . . . . . . . . . . . . . . . . . . . Miscellaneous 16 | . . . . . 8 . . . . . . . . . . . . . . 8 . . . . . . . . Route ------- -11/Scrapyard -10/Materials -10/Mines (discovered 2 exits: *Mat x2) -9/Materials (discovered 5 exits: *Mat x3 / Min / [*Sto]) -8/Materials (discovered 3 exits: *Fac x2 / Gar) -8/Garrison (discovered 4 exits: *Fac x3 / *Mat) -8/Materials -7/Factory -7/Lower Caves -7/Lower Caves (discovered 2 exits: *Fac / *Zio) -7/Zion -6/Proximity Caves -6/Factory (discovered 2 exits: *Fac / *Low) -6/Lower Caves -6/Lower Caves (discovered 2 exits: *Fac / *Dat) -6/Data Miner -5/Proximity Caves -5/Factory (discovered 4 exits: *Upp x2 / Ext x2) -5/Upper Caves -5/Upper Caves -5/Warlord -4/Proximity Caves -4/Factory -4/Armory (discovered 2 exits: Res / *Lab) -4/Lab -3/Research (discovered 5 exits: Res x3 / *Qua x2) -3/Quarantine -2/Research (discovered 2 exits: *Acc / *Tes) -2/Testing History --------- Turn | Location | Event 41 | -11/Scrapyard | Discovered new exit (range 15) 161 | -11/Scrapyard | Entered Materials 304 | -10/Materials | Build established: Mutant 481 | -10/Materials | Discovered new exit (range 16) 580 | -10/Materials | Entered Mines 581 | -10/Mines | Learned location of Storage (-9) 652 | -10/Mines | Learned 2 Materials zone layouts 683 | -10/Mines | Discovered new exit (range 14) 740 | -10/Mines | Core integrity fell below 50% 771 | -10/Mines | Discovered new exit (range 16) 774 | -10/Mines | Lost 5 parts (1p2n1u1w) 822 | -10/Mines | Entered Materials 822 | -9/Materials | Evolved 2 slots: Utility x2 930 | -9/Materials | Lost 3 parts (1n1u1w) 1133 | -9/Materials | Discovered new exit (range 10) 1152 | -9/Materials | Central database locked down 1201 | -9/Materials | Discovered new exit (range 16) 1203 | -9/Materials | Core integrity fell below 50% 1304 | -9/Materials | Learned location of 1 exit from Recycling 1337 | -9/Materials | Identified exit to Materials 1337 | -9/Materials | Identified exit to Mines 1362 | -9/Materials | Loaded intel: 2 recycling unit locations 1376 | -9/Materials | Learned 2 Storage zone layouts 1380 | -9/Materials | Learned Materials recycling unit intel 1382 | -9/Materials | Learned Storage trap positions 1383 | -9/Materials | Learned Storage garrison access intel 1384 | -9/Materials | Learned location of 1 exit from Recycling 1455 | -9/Materials | Entered another Materials area 1455 | -8/Materials | Evolved 2 slots: Propulsion x1, Weapon x1 1456 | -8/Materials | Loaded intel: 2 recycling unit locations 2026 | -8/Materials | Build established: Scavenger-Tank 2095 | -8/Materials | Central database locked down 2924 | -8/Materials | Build established: Scavenger-Gunner 2952 | -8/Materials | Discovered new exit (range 5) 3538 | -8/Materials | Discovered new exit (range 11) 3667 | -8/Materials | Build established: Gunner 3825 | -8/Materials | Identified exit to Garrison 3825 | -8/Materials | Entered Garrison 3825 | -8/Garrison | Warlord forces raided the area 3826 | -8/Garrison | Identified exit to Materials 3869 | -8/Garrison | Triggered checkpoint 3899 | -8/Garrison | Garrison Relay disabled 3931 | -8/Garrison | Triggered checkpoint 3937 | -8/Garrison | Triggered checkpoint 3946 | -8/Garrison | Phase Generator disabled 4113 | -8/Garrison | Triggered checkpoint 4156 | -8/Garrison | Build established: Scavenger-Tank 4195 | -8/Garrison | Triggered checkpoint 4319 | -8/Garrison | Warlord forces retreated 4379 | -8/Garrison | Triggered checkpoint 4384 | -8/Garrison | Discovered new exit (range 11) 4707 | -8/Garrison | Garrison Relay disabled 4907 | -8/Garrison | Build established: Scavenger-Mutant 4913 | -8/Garrison | Discovered new exit (range 12) 4915 | -8/Garrison | Triggered checkpoint 4964 | -8/Garrison | Garrison Relay disabled 5199 | -8/Garrison | Discovered new exit (range 11) 5315 | -8/Garrison | Triggered checkpoint 5355 | -8/Garrison | Garrison Relay disabled 5433 | -8/Garrison | Entered Materials 5433 | -8/Materials | Accompanied by 5 allies 5563 | -8/Materials | Build established: Commander-Mutant 5591 | -8/Materials | Discovered new exit (range 17) 5833 | -8/Materials | First assault squad dispatched 6237 | -8/Materials | Build established: Scavenger-Mutant 6262 | -8/Materials | Core integrity fell below 50% 6568 | -8/Materials | Build established: Mutant 6570 | -8/Materials | Entered Factory 6570 | -7/Factory | Evolved 2 slots: Propulsion x1, Utility x1 6639 | -7/Factory | Central database locked down 6755 | -7/Factory | Discovered new exit (range 10) 6948 | -7/Factory | Entered Lower Caves 6984 | -7/Lower Caves | Attracted the attention of an 0b10 outpost 7026 | -7/Lower Caves | Met a Warlord Commander 7027 | -7/Lower Caves | Learned location of Warlord (-5) 7028 | -7/Lower Caves | Warlord Commander delivered Encrypted Comm Array 7031 | -7/Lower Caves | Found Encrypted Comm Array 7035 | -7/Lower Caves | Destroyed 7 combat bots 7040 | -7/Lower Caves | Lost 6 parts (1p2n2u1w) 7182 | -7/Lower Caves | Found Prototype Device 7296 | -7/Lower Caves | Encountered a Warlord checkpoint 7399 | -7/Lower Caves | Discovered new exit (range 12) 7584 | -7/Lower Caves | Entered another Lower Caves area 7584 | -7/Lower Caves | Accompanied by 2 allies 7622 | -7/Lower Caves | Entered an active Warlord outpost 7672 | -7/Lower Caves | Learned Armory trap positions 7672 | -7/Lower Caves | Learned Extension emergency access door positions 7672 | -7/Lower Caves | Learned Research stockpile data 7672 | -7/Lower Caves | Learned Extension terminal intel 7688 | -7/Lower Caves | Destroyed J8-MC4(g) 7775 | -7/Lower Caves | Discovered new exit (range 6) 7982 | -7/Lower Caves | Build established: Scavenger-Tank 8338 | -7/Lower Caves | Attracted the attention of an 0b10 checkpoint 8426 | -7/Lower Caves | Discovered new exit (range 13) 8489 | -7/Lower Caves | Entered Zion 8489 | -7/Zion | Accompanied by 2 allies 8543 | -7/Zion | Given the Hacking Drone Bay 8544 | -7/Zion | Found Prototype Device 8621 | -7/Zion | Visited the Megawrench Repair Shop 8645 | -7/Zion | Discovered new exit (range 18) 8659 | -7/Zion | Build established: Scavenger-Mutant 8849 | -7/Zion | Given A8's code to call for help 8951 | -7/Zion | Learned Factory emergency access door positions 8955 | -7/Zion | Acquired unknown access codes intercepted by a Zionite 9195 | -7/Zion | Received a visual enhancement algorithm 9293 | -7/Zion | Met Imprinter 9426 | -7/Zion | Found Prototype Energy Gun 9588 | -7/Zion | Megawrench repaired 13 parts 9729 | -7/Zion | Enhanced Grunt warped into view, answering call for help 9731 | -7/Zion | Enhanced Grunt warped into view, answering call for help 9859 | -7/Zion | Entered Proximity Caves 9859 | -6/Proximity Caves | Accompanied by 4 allies 9871 | -6/Proximity Caves | Spotted B-75 Beast 9897 | -6/Proximity Caves | Allies destroyed B-75 Beast 9931 | -6/Proximity Caves | Build established: Scavenger-Tank 10161 | -6/Proximity Caves | Discovered new exit (range 8) 10671 | -6/Proximity Caves | Attracted the attention of an 0b10 checkpoint 11199 | -6/Proximity Caves | Entered Factory 11199 | -6/Factory | Accompanied by 4 allies 11199 | -6/Factory | Evolved 2 slots: Propulsion x1, Utility x1 11338 | -6/Factory | Garrison activated, responded to threat 11579 | -6/Factory | Lost 3 allies 11818 | -6/Factory | Discovered new exit (range 21) 11891 | -6/Factory | Build established: Scavenger-Skirmisher 11901 | -6/Factory | Discovered new exit (range 6) 11909 | -6/Factory | Identified exit to Factory 11955 | -6/Factory | Identified exit to Lower Caves 11960 | -6/Factory | Entered Lower Caves 11961 | -6/Lower Caves | Encountered a Warlord checkpoint 12272 | -6/Lower Caves | Discovered new exit (range 20) 12328 | -6/Lower Caves | Learned Factory emergency access door positions 12387 | -6/Lower Caves | Identified exit to Lower Caves 12414 | -6/Lower Caves | Entered another Lower Caves area 12422 | -6/Lower Caves | Discovered exit to Factory (range 14) 12740 | -6/Lower Caves | Encountered a Warlord checkpoint 12781 | -6/Lower Caves | Learned Factory stockpile data 13112 | -6/Lower Caves | Discovered new exit (range 12) 13131 | -6/Lower Caves | Identified exit to Data Miner 13205 | -6/Lower Caves | Learned location of Extension (-5) 14517 | -6/Lower Caves | Entered Data Miner 14519 | -6/Data Miner | Discovered new exit (range 6) 14535 | -6/Data Miner | Met Data Miner 14562 | -6/Data Miner | Learned location of Section 7 (-2) 14562 | -6/Data Miner | Acquired the access code to Warlord's prototype stash 14589 | -6/Data Miner | Received God Mode back door access code from Data Miner 14809 | -6/Data Miner | Destroyed Data Miner 14812 | -6/Data Miner | Found Quantum Router 14814 | -6/Data Miner | Found Deep Network Scanner 14815 | -6/Data Miner | Interfaced with the Data Conduit 14919 | -6/Data Miner | Core integrity fell below 50% 14949 | -6/Data Miner | Lost 5 parts (1n2u2w) 15063 | -6/Data Miner | Core integrity fell below 20% 15090 | -6/Data Miner | Lost 3 parts (2u1w) 15312 | -6/Data Miner | Identified exit to Proximity Caves 15335 | -6/Data Miner | Entered Proximity Caves 15374 | -5/Proximity Caves | Attracted the attention of an 0b10 checkpoint 15394 | -5/Proximity Caves | Learned 8 Factory zone layouts 15676 | -5/Proximity Caves | Spotted B-75 Beast 15708 | -5/Proximity Caves | Destroyed B-75 Beast 15798 | -5/Proximity Caves | Discovered exit to Factory (range 7) 15806 | -5/Proximity Caves | Entered Factory 15806 | -5/Factory | Evolved 2 slots: Power x1, Propulsion x1 15807 | -5/Factory | Identified exit to Extension 15808 | -5/Factory | Identified exit to Upper Caves 15811 | -5/Factory | Loaded intel: 256 machine locations 15897 | -5/Factory | Allied Derelicts emerged from ambush trap array 16073 | -5/Factory | Entered Upper Caves 16208 | -5/Upper Caves | Encountered a Warlord checkpoint 16446 | -5/Upper Caves | Discovered new exit (range 13) 16472 | -5/Upper Caves | Identified exit to Upper Caves 16474 | -5/Upper Caves | Entered another Upper Caves area 16617 | -5/Upper Caves | Learned Factory interactive machine intel 16624 | -5/Upper Caves | Found DCF Scrap (12 items) 16660 | -5/Upper Caves | Build established: Hacker-Skirmisher 16797 | -5/Upper Caves | Discovered new exit (range 16) 16813 | -5/Upper Caves | Identified exit to Warlord 16919 | -5/Upper Caves | Entered a destroyed Warlord outpost 17005 | -5/Upper Caves | Entered Warlord 17380 | -5/Warlord | Learned 4 Armory zone layouts 17380 | -5/Warlord | Learned 4 Armory zone layouts 17380 | -5/Warlord | Learned 4 Research zone layouts 17380 | -5/Warlord | Learned Armory garrison access intel 17380 | -5/Warlord | Learned Research fabricator intel 17513 | -5/Warlord | Found System Mapper 17522 | -5/Warlord | Found Vortex Chain Reactor 17527 | -5/Warlord | Found Exp. Cloaking Device 17533 | -5/Warlord | Found Exp. Target Analyzer 17638 | -5/Warlord | Met Warlord 17647 | -5/Warlord | Warlord's base attacked by MAIN.C 17723 | -5/Warlord | Found Prototype Energy Gun 17724 | -5/Warlord | Identified Vortex Rail 17731 | -5/Warlord | Found Prototype Energy Cannon 17731 | -5/Warlord | Identified Vortex Cannon 17736 | -5/Warlord | Found Vortex Cannon 17753 | -5/Warlord | Found Vortex Rail 17988 | -5/Warlord | Opened side exit 17997 | -5/Warlord | Warlord forces counterattacked 18010 | -5/Warlord | Discovered new exit (range 9) 18020 | -5/Warlord | Build established: Hacker-Gunner 18029 | -5/Warlord | Spotted Striker 18107 | -5/Warlord | Lost 5 allies 18142 | -5/Warlord | Entered Proximity Caves 18169 | -4/Proximity Caves | Spotted B-86 Titan 18179 | -4/Proximity Caves | Destroyed B-86 Titan 18212 | -4/Proximity Caves | Spotter reported a threat 18213 | -4/Proximity Caves | Spotter reported a threat 18322 | -4/Proximity Caves | Spotter reported a threat 18375 | -4/Proximity Caves | Spotter reported a threat 18548 | -4/Proximity Caves | Discovered new exit (range 3) 18551 | -4/Proximity Caves | Entered Factory 18551 | -4/Factory | Evolved 2 slots: Utility x2 18552 | -4/Factory | Identified exit to Armory 18553 | -4/Factory | Loaded intel: 251 machine locations 18554 | -4/Factory | Loaded intel: 54 interactive machine locations 18801 | -4/Factory | Search patrols dispatched 18853 | -4/Factory | Entered Armory 18854 | -4/Armory | Identified exit to Research 18855 | -4/Armory | Loaded intel: 73 trap records 18856 | -4/Armory | Loaded intel: 119 machine locations 19052 | -4/Armory | Build established: Hacker-Tank 19146 | -4/Armory | Repaired Lyr. Heavy Armor Plating? 19295 | -4/Armory | Spotted B-86 Titan 19322 | -4/Armory | Destroyed B-86 Titan 19428 | -4/Armory | Found Exp. ECM Suite 19479 | -4/Armory | Lost 3 allies 19727 | -4/Armory | Fabricated Nova Cannon? 19833 | -4/Armory | Core integrity fell below 50% 19859 | -4/Armory | Lost 5 parts (1p2u2w) 19907 | -4/Armory | Discovered new exit (range 5) 19947 | -4/Armory | Entered Lab 19949 | -4/Lab | Discovered exit to Research (range 9) 19961 | -4/Lab | Hidden lab's door opened automatically 19961 | -4/Lab | Sensor layout match revealed 19962 | -4/Lab | Gained access to the hidden lab's interior 19994 | -4/Lab | Found Prototype Special Weapon 20011 | -4/Lab | Decrypted terminal 20011 | -4/Lab | Acquired modification code for an L2 power cell 20043 | -4/Lab | Found Alien Artifact 20053 | -4/Lab | Found Alien Artifact 20063 | -4/Lab | Identified Core Regenerator 20063 | -4/Lab | Used Core Regenerator, restored core integrity (+287) 20064 | -4/Lab | Identified Integrated Dissipator 20064 | -4/Lab | Installed Integrated Dissipator, increased core heat dissipation (+20) 20112 | -4/Lab | Found Prototype Protection 20116 | -4/Lab | Identified Med. Regenerative Plating 20118 | -4/Lab | Found Prototype Energy Gun 20122 | -4/Lab | Found Prototype Energy Cannon 20136 | -4/Lab | Identified Tachyon Dispersion Ray 20206 | -4/Lab | Found Deep Network Scanner 20257 | -4/Lab | Found Alien Artifact 20374 | -4/Lab | Decrypted terminal 20379 | -4/Lab | Entered Research 20379 | -3/Research | Evolved 2 slots: Utility x2 20382 | -3/Research | Loaded intel: 118 machine locations 20383 | -3/Research | Loaded intel: 4 fabricator locations 20401 | -3/Research | Central database locked down 20457 | -3/Research | Identified exit to Quarantine 20457 | -3/Research | Identified exit to Research 20484 | -3/Research | Spotted B-86 Titan 20504 | -3/Research | Destroyed B-86 Titan 20683 | -3/Research | Found Gamma Bomb Array 20699 | -3/Research | Spotted B-90 Cyclops 20711 | -3/Research | Entered Quarantine 20712 | -3/Quarantine | Loaded intel: 55 machine locations 20752 | -3/Quarantine | Cryocooling Duct disabled 20767 | -3/Quarantine | Ambient heat levels rising (+20) 20767 | -3/Quarantine | Non-combat units ordered to evacuate 20775 | -3/Quarantine | Found Alien Slashing Weapon 20913 | -3/Quarantine | Found Alien Launcher 20984 | -3/Quarantine | Lost 4 parts (2p1u1w) 21083 | -3/Quarantine | System corruption reached 10% 21113 | -3/Quarantine | Lost 3 parts (1n1u1w) 21134 | -3/Quarantine | Found Alien Artifact 21176 | -3/Quarantine | Build established: Wizard-Mutant 21191 | -3/Quarantine | Found Alien Artifact 21191 | -3/Quarantine | Identified Phase Redirector 21218 | -3/Quarantine | Entered Research 21218 | -2/Research | Warlord forces began assault on 0b10 21218 | -2/Research | Evolved 2 slots: Power x1, Utility x1 21219 | -2/Research | Loaded intel: 105 machine locations 21243 | -2/Research | Distinguished unit "Vikings" dispatched to help 21306 | -2/Research | Spotted B-90 Cyclops 21317 | -2/Research | Identified Potential Cannon 21328 | -2/Research | Research machine network offline 21348 | -2/Research | Destroyed 7 combat bots 21355 | -2/Research | Lost 8 allies 21357 | -2/Research | Lost 6 parts (1p1n3u1w) 21360 | -2/Research | Met up with Warlord 21487 | -2/Research | Discovered new exit (range 10) 21548 | -2/Research | Identified exit to Access 21567 | -2/Research | Discovered new exit (range 14) 21580 | -2/Research | Identified exit to Testing 21729 | -2/Research | Spotted Tracker 21731 | -2/Research | Spotted Tracker 21742 | -2/Research | Destroyed Tracker 21799 | -2/Research | Met DD-05H 21861 | -2/Research | Borebot progress halted 21902 | -2/Research | Borebot progress halted 21911 | -2/Research | Identified Gui. Remote Datajack 21914 | -2/Research | Hacked God Mode, triggering a massive explosion 21914 | -2/Research | Destroyed God Mode 21916 | -2/Research | System corruption reached 10% 21916 | -2/Research | System corruption reached 30% 22086 | -2/Research | Spotted Striker 22090 | -2/Research | Spotted Striker 22094 | -2/Research | Destroyed Striker 22097 | -2/Research | Destroyed Striker 22100 | -2/Research | Spotted Striker 22218 | -2/Research | Warlord invited to help at Command 22218 | -2/Research | Given Cave Seal Controls access code 22230 | -2/Research | Entered Testing 22231 | -2/Testing | Loaded intel: 96 machine locations 22253 | -2/Testing | Scanned by Researcher 22266 | -2/Testing | Found Prototype Protection 22266 | -2/Testing | Identified SHELL Armor 22274 | -2/Testing | Found Prototype Protection 22328 | -2/Testing | Found Prototype Energy Gun 22329 | -2/Testing | Identified Warp Gun 22556 | -2/Testing | Identified Hvy. Regenerative Plating 22577 | -2/Testing | Build established: Wizard-Skirmisher 22630 | -2/Testing | Identified Transdimensional Reconstructor 22630 | -2/Testing | Warped through subspace 22646 | -2/Testing | Lost 6 parts (3p1n1u1w) 22676 | -2/Testing | Intercept squad dispatched 22687 | -2/Testing | Spotted Tracker 22688 | -2/Testing | Spotted Tracker 22701 | -2/Testing | Destroyed Tracker 22710 | -2/Testing | Found Exp. Phase Shifter 22711 | -2/Testing | Spotted Combat Programmer 22715 | -2/Testing | Spotted Combat Programmer 22723 | -2/Testing | Destroyed Combat Programmer 22723 | -2/Testing | Destroyed Combat Programmer 22776 | -2/Testing | Destroyed Tracker 22804 | -2/Testing | Core integrity fell below 50% 22812 | -2/Testing | Lost 9 parts (1p3n3u2w) 22862 | -2/Testing | Identified Sigix Terminator 22863 | -2/Testing | Fired Sigix Terminator 22863 | -2/Testing | Destroyed self with Sigix Terminator Last Messages --------------- 22863_ Destroyed Gamma Rifle. 22863_ Destroyed Adv. Heat Sink. 22863_ P-80 Master destroyed. 22863_ Destroyed Gamma Rifle. 22863_ Destroyed Imp. Antigrav System. 22863_ P-80 Master destroyed. 22863_ H-88 Terminator destroyed. 22863_ Destroyed Adv. Remote Datajack. 22863_ P-80 Master destroyed. 22863_ Destroyed Gamma Rifle. 22863_ P-80 Master destroyed. 22863_ Destroyed Lgt. Ion Engine. 22863_ Destroyed Wheel. 22863_ K-01 Serf destroyed. 22863_ Destroyed Gamma Rifle. 22863_ Destroyed Imp. Antigrav System. 22863_ P-80 Master destroyed. 22863_ Broken Centrium Leg+ destroyed. 22863_ Destroyed Broken Centrium Leg+. [Achievement: Torch] Map ----- +----------------------------------------------------+ | ""???????????????????????"""?"""??""?????????????? | | ""????????????????????????????????""?????????????? | | ?????????????????????????"""??????""?????????????? | | ?????????????????????????"""??????""?????????????? | | ?????????"""""?"""""?????"""???????"?????????????? | | ?????????"""""?"""""?????"""?????????????????????? | | ?????????"""""?"""""?????"""?????????????????????? | | #????????"""""?"""""?????????????????????????????? | | ?????????????????????????????????????????????????? | | ?????????????????????????????????????????????????? | | ??????????????????????? ?????????????????????????? | | ??????????????????????# ?????????????????????????? | | ??????????????????????# ?????????????????????????? | | ????????##????????????# ????????????????????????? | | #############?????????# ????????????????????????? | | ^^ ############## ????????????????????????? | | !% ???????????????????????? | | != =%%=[ ;;;;;;;;;????????????????????????? | | % %=! !! " ; ????????????????????????? | | #####! ;;;;;;;;;##?????""""?????????????? | | # %=""" ; #?????""""?????????????? | | # ["" ; #?????""""?????????????? | | # ; #?????""""?????????????? | | # ; #??????????????????????? | | # ; #??????????????????????? | | # ; @#??????????????????????? | | ########+#;; ; #??????????????????????? | | ??????? ? ; ; #??????????????????????? | | ??????? ??; ;;;;;;;;;;#??????????????????????? | | ??????? ???; ; ????????????????????????? | | ??????? ???# ; ????????????????????????? | | ???????????# ;;????????????????????????? | | ???"""?"""?# ; ????????????????????????? | | ???"""?"""?# ;;; ; ????????????????????????? | | ???"""?"""?# ; ; ;???"""??"""??????????????? | | ???????????# ### #??""""?""""??????????????? | | ###################Y +??""""?""""??????????????? | | YY #??"""??"""???????????????? | | +?????????????????????????? | | ######### " #?????????????????????????? | | #????# "" #??????""?""??????????????? | | #????# " " #??????""T""??????????????? | | #????# """ " #???????"""???????????????? | | ####????# "" #?????????????????????????? | | ##???????# #?????????????????????????? | | ?????? #?????????????????????????? | | """??## ###### ###?????????????????????????? | | """"???# #????# #???????????????????????????? | | """ ??# #????# #???????????????????????????? | | ???####??????####???????????????????????????? | +----------------------------------------------------+ Best States ------------- Heat Dissipation 135 Coolant Potential 100 Energy Generation 61 Energy Capacity 1325 Matter Stores 300 Matter Capacity 300 Sight Range 22 Robot Scan Range 16 Terrain Scan Density 10 ECM Strength 3 Cloak Strength 4 Armor Coverage 900 Resistance: TH 15 Resistance: EM 20 Propulsion Shielding 90 Weapon Shielding 66 Phase Shifting 15 Evasion (%) 70 Melee Accuracy 16 Core Analysis 6 Recoil Reduction 3 Particle Charging 25 Kinecelleration 30 Salvage Targeting 4 Offensive Hacking 45 Defensive Hacking 25 Item Schematics ----------------- Imp. Reaction Control System | -7/Zion | Archive Microactuators | -7/Zion | Archive Hvy. Missile Launcher | -7/Zion | Archive Plasma Rifle | -7/Zion | Archive Matter Compressor | -7/Zion | Archive Recalibrator | -7/Zion | Archive Hyp. Coil Gun | -7/Zion | Archive Jamming Amplifier | -7/Zion | Archive Imp. Medium Armor Plating | -7/Zion | Archive Corruption Screen | -7/Zion | Archive Imp. Trap Scanner | -7/Zion | Archive Lightning Gun | -7/Zion | Archive Drone Bay | -7/Zion | Archive Arc Projector | -7/Zion | Archive Imp. Kinecellerator | -7/Zion | Archive Combat Drone Bay | -6/Data Miner | Free Lgt. Regenerative Plating | -6/Data Miner | Free Cld. Nuclear Pulse Thruster | -6/Data Miner | Free Imp. Thermal Defense Suite | -6/Data Miner | Free Enh. Coil Gun | -6/Data Miner | Free Field Propulsion Array | -6/Data Miner | Free Adv. Cryofiber Web | -6/Data Miner | Free Dispersion Rifle | -6/Data Miner | Free Impulse Thruster Array | -6/Data Miner | Free Imp. Heavy Siege Treads | -4/Factory | Hacked Adv. Heavy Treads | -4/Factory | Hacked Imp. Q-thruster | -2/Testing | Archive Imp. KE Penetrator | -2/Testing | Archive Graviton Cannon | -2/Testing | Archive Electron Diverter | -2/Testing | Archive Adv. EM Shield | -2/Testing | Archive Exp. Shock Absorption System | -2/Testing | Archive Exp. EM Shield | -2/Testing | Archive Gui. Micro-nuke Launcher | -2/Testing | Archive Exp. Optical Array | -2/Testing | Archive Exp. Focal Shield | -2/Testing | Archive Exp. Matter Compressor | -2/Testing | Archive Proton Burst Cannon | -2/Testing | Archive Robot Schematics ------------------ R-06 Scavenger | -7/Zion | Archive K-01 Serf | -7/Zion | Archive Y-72 Warden | -7/Zion | Archive E-15 Imp | -6/Data Miner | Free A-15 Conveyor | -6/Data Miner | Free M-22 Extractor | -6/Data Miner | Free S-27 Virus | -6/Data Miner | Free B-60 Warrior | -6/Data Miner | Free Y-64 Sentinel | -6/Data Miner | Free H-77 Assassin | -6/Data Miner | Free R-10 Processor | -6/Data Miner | Free G-73 Enforcer | -2/Testing | Archive T-07 Excavator | -2/Testing | Archive C-65 Expert | -2/Testing | Archive Fabricated ------------ Nova Cannon | x2 | -4/Armory | Preloaded Repaired ---------- Lyr. Heavy Armor Plating | 18% | -4/Armory Studied --------- Com. Wheel | -9/Materials | Hacked Arm. Wheel | -9/Materials | Hacked Minigun | -8/Materials | Hacked Autogun | -8/Materials | Hacked Lgt. Treads | -8/Materials | Hacked Wheel | -7/Factory | Hacked Hvy. Plasma Cannon | -5/Factory | Hacked Myomer Leg | -5/Factory | Hacked Centrium Leg | -3/Research | Hacked Adv. VSS Leg | -3/Research | Hacked Enh. Nova Cannon | -3/Research | Hacked Nova Cannon | -3/Quarantine | Hacked Alien Tech Used ----------------- Core Regenerator Integrated Dissipator Phase Redirector Transdimensional Reconstructor Sigix Terminator Achievements -------------- Coming In Hot Doshington Hot Stuff Torch Challenges ------------ None Game ------ Seed SpreadDamperDrivehammer Manual? 0 Play Time 02:39:42 Cumulative 514.0 hours Start 2025.11.17 @ 23:51:45 End 2025.11.18 @ 02:39:34 Sessions 2 Manual Loads 0 Difficulty Rogue Special Mode None Game No. 692 Rogue 692 Adventurer 0 Explorer 0 Win Type - Total 16 Types 8/0/2/2/1/0/2/1/0/0 Lore% 91 Gallery% 85 Achievement% 68 Wizard Run 0 Options --------- Layout 0 ASCII 0 Keyboard 0 Movement Mouse Keybinds 0 Fullscreen 1 Font 24/Terminus Map View 76x50 Zoom Use 0% Tactical HUD 1 Map Filters NONE Filters NONE Steam 1 RUN: efd1bbd7-407f-43ad-a2be-98be6c2a79f1